[Event "FIDE World Rapid Chess Championship 2021"]
[White "Wieczorek, Oskar"]
[Black "Tologontegin, Semetey"]
[WhiteFideId "1133950"]
[BlackFideId "13800574"]
[WhiteElo "2367"]
[BlackElo "2300"]
[Result "1-0"]
[Round "09"]
[TimeControl "900+10"]
[Date "2021.12.27"]
[WhiteClock "0:00:26"]
[BlackClock "0:00:16"]

1. e4 {[%clk 0:15:00]}  c5 {[%clk 0:15:00]} 2. Nf3 {[%clk 0:15:00]}  d6 {[%clk 0:15:00]} 3. d4 {[%clk 0:15:00]}  cxd4 {[%clk 0:15:00]} 4. Nxd4 {[%clk 0:15:00]}  Nf6 {[%clk 0:15:00]} 5. Nc3 {[%clk 0:15:00]}  g6 {[%clk 0:15:00]} 6. g3 {[%clk 0:15:00]}  Bg7 {[%clk 0:15:00]} 7. Bg2 {[%clk 0:15:00]}  O-O {[%clk 0:15:00]} 8. O-O {[%clk 0:15:00]}  Nc6 {[%clk 0:15:00]} 9. Nde2 {[%clk 0:15:00]}  Bd7 {[%clk 0:15:53]} 10. h3 {[%clk 0:15:04]}  Rc8 {[%clk 0:15:53]} 11. b3 {[%clk 0:15:02]}  a6 {[%clk 0:15:08]} 12. Be3 {[%clk 0:15:02]}  b5 {[%clk 0:15:08]} 13. a4 {[%clk 0:11:27]}  Nb4 {[%clk 0:14:16]} 14. axb5 {[%clk 0:10:40]}  axb5 {[%clk 0:12:17]} 15. Rc1 {[%clk 0:10:40]}  Qc7 {[%clk 0:11:37]} 16. Qd2 {[%clk 0:08:43]}  Rfd8 {[%clk 0:10:56]} 17. Rfe1 {[%clk 0:06:44]}  Qb8 {[%clk 0:10:56]} 18. g4 {[%clk 0:06:00]}  Be8 {[%clk 0:10:28]} 19. g5 {[%clk 0:04:19]}  Nd7 {[%clk 0:10:28]} 20. Nd5 {[%clk 0:04:19]}  Nxd5 {[%clk 0:10:28]} 21. exd5 {[%clk 0:04:19]}  b4 {[%clk 0:06:37]} 22. Bd4 {[%clk 0:03:29]}  Nc5 {[%clk 0:06:37]} 23. Bxg7 {[%clk 0:03:29]}  Kxg7 {[%clk 0:06:37]} 24. Nd4 {[%clk 0:03:29]}  Rc7 {[%clk 0:06:37]} 25. h4 {[%clk 0:03:29]}  Qc8 {[%clk 0:06:27]} 26. Qf4 {[%clk 0:03:00]}  Kg8 {[%clk 0:05:06]} 27. h5 {[%clk 0:01:14]}  e5 {[%clk 0:02:55]} 28. dxe6 {[%clk 0:01:14]}  fxe6 {[%clk 0:02:55]} 29. Bh3 {[%clk 0:01:14]}  e5 {[%clk 0:02:55]} 30. Bxc8 {[%clk 0:01:14]}  exf4 {[%clk 0:02:55]} 31. Be6+ {[%clk 0:01:14]}  Bf7 {[%clk 0:02:55]} 32. Bxf7+ {[%clk 0:01:14]}  Kxf7 {[%clk 0:01:38]} 33. h6 {[%clk 0:00:27]}  Rdd7 {[%clk 0:01:38]} 34. Kg2 {[%clk 0:00:27]}  Re7 {[%clk 0:01:38]} 35. Kf3 {[%clk 0:00:27]}  Re5 {[%clk 0:01:38]} 36. Nb5 {[%clk 0:00:27]}  Nd3 {[%clk 0:00:22]} 37. cxd3 {[%clk 0:00:16]}  Rxc1 {[%clk 0:00:22]} 38. Nxd6+ {[%clk 0:00:16]}  Ke6 {[%clk 0:00:22]} 39. Rxc1 {[%clk 0:00:16]}  Kxd6 {[%clk 0:00:22]} 40. Kxf4 {[%clk 0:00:16]}  Rf5+ {[%clk 0:00:22]} 41. Kg4 {[%clk 0:00:16]}  Rxf2 {[%clk 0:00:22]} 42. Rc4 {[%clk 0:00:16]}  Rg2+ {[%clk 0:00:22]} 43. Kf4 {[%clk 0:00:16]}  Rf2+ {[%clk 0:00:22]} 44. Ke3 {[%clk 0:00:40]}  Rg2 {[%clk 0:00:31]} 45. Rxb4 {[%clk 0:00:40]}  Rg3+ {[%clk 0:00:31]} 46. Kd2 {[%clk 0:00:40]}  Rxg5 {[%clk 0:00:31]} 47. Rb7 {[%clk 0:00:40]}  Rh5 {[%clk 0:00:31]} 48. Rxh7 {[%clk 0:00:40]}  g5 {[%clk 0:00:31]} 49. b4 {[%clk 0:00:40]}  g4 {[%clk 0:00:31]} 50. Rg7 {[%clk 0:00:40]}  Rxh6 {[%clk 0:00:31]} 51. Rxg4 {[%clk 0:00:40]}  Rh1 {[%clk 0:00:31]} 52. Rg5 {[%clk 0:00:40]}  Kc6 {[%clk 0:00:31]} 53. Rc5+ {[%clk 0:00:40]}  Kb6 {[%clk 0:00:31]} 54. Rf5 {[%clk 0:00:40]}  Rb1 {[%clk 0:00:31]} 55. Kc3 {[%clk 0:00:40]}  Rc1+ {[%clk 0:00:31]} 56. Kb3 {[%clk 0:00:40]}  Rb1+ {[%clk 0:00:31]} 57. Kc4 {[%clk 0:00:40]}  Rc1+ {[%clk 0:00:31]} 58. Kd4 {[%clk 0:00:46]}  Rb1 {[%clk 0:00:57]} 59. Kc3 {[%clk 0:00:46]}  Rc1+ {[%clk 0:00:57]} 60. Kb2 {[%clk 0:00:46]}  Rd1 {[%clk 0:00:57]} 61. Kc2 {[%clk 0:00:46]}  Rh1 {[%clk 0:00:57]} 62. d4 {[%clk 0:00:46]}  Rh3 {[%clk 0:00:57]} 63. Rc5 {[%clk 0:00:46]}  Rg3 {[%clk 0:00:57]} 64. d5 {[%clk 0:00:46]}  Rg6 {[%clk 0:00:57]} 65. Kb3 {[%clk 0:00:46]}  Rg1 {[%clk 0:00:57]} 66. Rc6+ {[%clk 0:00:46]}  Kb5 {[%clk 0:00:57]} 67. Rc5+ {[%clk 0:00:46]}  Kb6 {[%clk 0:00:57]} 68. Kc4 {[%clk 0:00:46]}  Rc1+ {[%clk 0:00:57]} 69. Kd4 {[%clk 0:00:46]}  Rb1 {[%clk 0:00:40]} 70. d6 {[%clk 0:00:49]}  Rxb4+ {[%clk 0:00:40]} 71. Kd5 {[%clk 0:00:49]}  Rb1 {[%clk 0:00:40]} 72. Rc4 {[%clk 0:00:49]}  Rd1+ {[%clk 0:00:40]} 73. Ke6 {[%clk 0:00:49]}  Re1+ {[%clk 0:00:40]} 74. Kd7 {[%clk 0:00:49]}  Rd1 {[%clk 0:00:40]} 75. Rc2 {[%clk 0:00:49]}  Rd3 {[%clk 0:00:16]} 76. Rb2+ {[%clk 0:00:26]}  Ka7 {[%clk 0:00:16]} 77. Kc7 {[%clk 0:00:26]}  Rc3+ {[%clk 0:00:16]} 78. Kd8 {[%clk 0:00:26]}  Rd3 {[%clk 0:00:16]} 79. d7 {[%clk 0:00:26]}  Rd1 {[%clk 0:00:16]} 80. Re2 {[%clk 0:00:26]}  Kb7 {[%clk 0:00:16]} 81. Ke7 {[%clk 0:00:26]}  Kc7 {[%clk 0:00:16]} 82. Rc2+ {[%clk 0:00:26]}  Kb6 {[%clk 0:00:16]} 1-0


[Site "http://www.Chess.com"]

[Event "FIDE World Rapid Chess Championship 2021"]
[White "Kuzmicz, Krystian"]
[Black "Kolosowski, Mateusz"]
[WhiteFideId "1119125"]
[BlackFideId "1129708"]
[WhiteElo "2314"]
[BlackElo "2371"]
[Result "0-1"]
[Round "09"]
[TimeControl "900+10"]
[Date "2021.12.27"]
[WhiteClock "0:00:41"]
[BlackClock "0:02:53"]

1. Nf3 {[%clk 0:15:00]}  Nf6 {[%clk 0:15:00]} 2. b3 {[%clk 0:15:00]}  g6 {[%clk 0:15:00]} 3. Bb2 {[%clk 0:15:00]}  Bg7 {[%clk 0:15:00]} 4. g3 {[%clk 0:15:00]}  O-O {[%clk 0:15:00]} 5. Bg2 {[%clk 0:15:00]}  d6 {[%clk 0:15:00]} 6. d4 {[%clk 0:15:00]}  c5 {[%clk 0:14:29]} 7. O-O {[%clk 0:15:28]}  Nc6 {[%clk 0:14:29]} 8. c4 {[%clk 0:12:42]}  Bg4 {[%clk 0:14:26]} 9. Nbd2 {[%clk 0:12:42]}  cxd4 {[%clk 0:11:51]} 10. Nxd4 {[%clk 0:12:42]}  Qd7 {[%clk 0:11:51]} 11. Re1 {[%clk 0:12:30]}  Rac8 {[%clk 0:07:59]} 12. N2f3 {[%clk 0:11:18]}  Rfd8 {[%clk 0:07:59]} 13. Nxc6 {[%clk 0:11:18]}  bxc6 {[%clk 0:07:59]} 14. Qc2 {[%clk 0:11:18]}  Qf5 {[%clk 0:08:01]} 15. Qxf5 {[%clk 0:09:22]}  Bxf5 {[%clk 0:08:01]} 16. Rac1 {[%clk 0:09:22]}  c5 {[%clk 0:06:52]} 17. Bc3 {[%clk 0:08:04]}  Be4 {[%clk 0:06:52]} 18. Ba5 {[%clk 0:05:46]}  Re8 {[%clk 0:06:36]} 19. Bh3 {[%clk 0:05:46]}  Rc6 {[%clk 0:06:36]} 20. Nd2 {[%clk 0:04:04]}  Ra6 {[%clk 0:05:47]} 21. Bc3 {[%clk 0:04:04]}  Bc6 {[%clk 0:03:18]} 22. Rc2 {[%clk 0:04:12]}  Rb6 {[%clk 0:03:18]} 23. Bg2 {[%clk 0:04:12]}  Bxg2 {[%clk 0:03:18]} 24. Kxg2 {[%clk 0:04:12]}  Ra8 {[%clk 0:03:18]} 25. Ba5 {[%clk 0:03:03]}  Ra6 {[%clk 0:03:12]} 26. Bc3 {[%clk 0:03:03]}  Rc6 {[%clk 0:03:12]} 27. Ba5 {[%clk 0:03:03]}  Nd7 {[%clk 0:03:12]} 28. Nf3 {[%clk 0:03:03]}  Ra6 {[%clk 0:03:12]} 29. Bd2 {[%clk 0:03:03]}  Nb8 {[%clk 0:03:12]} 30. e3 {[%clk 0:01:50]}  Nc6 {[%clk 0:03:24]} 31. Re2 {[%clk 0:01:50]}  Rb6 {[%clk 0:03:24]} 32. Bc3 {[%clk 0:01:50]}  a5 {[%clk 0:03:24]} 33. Bxg7 {[%clk 0:01:50]}  Kxg7 {[%clk 0:03:24]} 34. Rc3 {[%clk 0:01:50]}  a4 {[%clk 0:03:24]} 35. Rb2 {[%clk 0:01:50]}  axb3 {[%clk 0:03:24]} 36. axb3 {[%clk 0:01:50]}  Ra1 {[%clk 0:03:24]} 37. h4 {[%clk 0:01:50]}  Rba6 {[%clk 0:02:53]} 38. Rbc2 {[%clk 0:01:09]}  Nb4 {[%clk 0:02:53]} 39. Rc1 {[%clk 0:01:09]}  R1a2 {[%clk 0:02:53]} 40. Rb1 {[%clk 0:01:09]}  h6 {[%clk 0:02:53]} 41. Ne1 {[%clk 0:01:09]}  Rd2 {[%clk 0:02:53]} 42. Nf3 {[%clk 0:01:09]}  Re2 {[%clk 0:02:53]} 43. Ng1 {[%clk 0:01:09]}  Rea2 {[%clk 0:02:53]} 44. Nf3 {[%clk 0:01:09]}  Kf6 {[%clk 0:02:53]} 45. g4 {[%clk 0:00:39]}  Ke6 {[%clk 0:02:52]} 46. Ne1 {[%clk 0:00:39]}  Re2 {[%clk 0:02:52]} 47. Nd3 {[%clk 0:00:39]}  Nxd3 {[%clk 0:02:52]} 48. Rxd3 {[%clk 0:00:39]}  Raa2 {[%clk 0:02:52]} 49. Rf1 {[%clk 0:00:39]}  Reb2 {[%clk 0:02:52]} 50. h5 {[%clk 0:00:41]}  gxh5 {[%clk 0:02:53]} 51. gxh5 {[%clk 0:00:41]}  Ra3 {[%clk 0:02:53]} 52. Kf3 {[%clk 0:00:41]}  Raxb3 {[%clk 0:02:53]} 53. Rxb3 {[%clk 0:00:41]}  Rxb3 {[%clk 0:02:53]} 54. Rg1 {[%clk 0:00:41]}  Rc3 {[%clk 0:02:53]} 55. Rg8 {[%clk 0:00:41]}  Rxc4 {[%clk 0:02:53]} 56. Rh8 {[%clk 0:00:41]}  Kf6 {[%clk 0:02:53]} 0-1


[Site "http://www.Chess.com"]

[Event "FIDE World Rapid Chess Championship 2021"]
[White "Yunusov, Mukhammad"]
[Black "Kanarek, Marcel"]
[WhiteFideId "14700930"]
[BlackFideId "1126822"]
[WhiteElo "1832"]
[BlackElo "2296"]
[Result "0-1"]
[Round "09"]
[TimeControl "900+10"]
[Date "2021.12.27"]
[WhiteClock "0:00:22"]
[BlackClock "0:00:23"]

1. d4 {[%clk 0:15:00]}  Nf6 {[%clk 0:15:00]} 2. Nf3 {[%clk 0:15:00]}  g6 {[%clk 0:15:00]} 3. Nc3 {[%clk 0:15:00]}  d5 {[%clk 0:15:00]} 4. Bf4 {[%clk 0:15:00]}  c6 {[%clk 0:15:00]} 5. e3 {[%clk 0:15:30]}  Bg7 {[%clk 0:14:03]} 6. Bd3 {[%clk 0:15:30]}  O-O {[%clk 0:14:03]} 7. O-O {[%clk 0:15:30]}  Nbd7 {[%clk 0:13:07]} 8. h3 {[%clk 0:14:25]}  c5 {[%clk 0:11:25]} 9. Nb5 {[%clk 0:13:19]}  a6 {[%clk 0:11:25]} 10. Nc3 {[%clk 0:12:09]}  b5 {[%clk 0:09:36]} 11. a3 {[%clk 0:10:29]}  Bb7 {[%clk 0:08:36]} 12. Re1 {[%clk 0:10:29]}  Ne4 {[%clk 0:08:39]} 13. Bxe4 {[%clk 0:07:47]}  dxe4 {[%clk 0:05:43]} 14. Ng5 {[%clk 0:07:47]}  Nf6 {[%clk 0:05:43]} 15. Be5 {[%clk 0:07:53]}  Re8 {[%clk 0:03:02]} 16. h4 {[%clk 0:05:04]}  h6 {[%clk 0:03:02]} 17. Nh3 {[%clk 0:05:04]}  Qb6 {[%clk 0:03:02]} 18. dxc5 {[%clk 0:05:04]}  Qxc5 {[%clk 0:03:02]} 19. Qd4 {[%clk 0:03:38]}  Rac8 {[%clk 0:02:50]} 20. Rad1 {[%clk 0:03:38]}  Qxd4 {[%clk 0:02:50]} 21. Rxd4 {[%clk 0:02:48]}  Bf8 {[%clk 0:01:27]} 22. Bxf6 {[%clk 0:02:48]}  exf6 {[%clk 0:01:27]} 23. Rd7 {[%clk 0:02:48]}  Bc6 {[%clk 0:01:27]} 24. Ra7 {[%clk 0:02:48]}  Ra8 {[%clk 0:01:27]} 25. Rxa8 {[%clk 0:02:48]}  Rxa8 {[%clk 0:01:27]} 26. Rd1 {[%clk 0:02:48]}  g5 {[%clk 0:01:23]} 27. g3 {[%clk 0:02:28]}  Kg7 {[%clk 0:01:23]} 28. Kg2 {[%clk 0:02:28]}  Be7 {[%clk 0:01:23]} 29. Ng1 {[%clk 0:02:28]}  Rd8 {[%clk 0:01:23]} 30. Rxd8 {[%clk 0:02:28]}  Bxd8 {[%clk 0:01:23]} 31. Nge2 {[%clk 0:02:28]}  Kg6 {[%clk 0:00:28]} 32. Na2 {[%clk 0:01:38]}  Kh5 {[%clk 0:00:28]} 33. hxg5 {[%clk 0:01:38]}  fxg5 {[%clk 0:00:28]} 34. Nd4 {[%clk 0:01:38]}  Bd7 {[%clk 0:00:28]} 35. Nb4 {[%clk 0:01:38]}  a5 {[%clk 0:00:28]} 36. Nd5 {[%clk 0:01:38]}  Kg6 {[%clk 0:00:28]} 37. Nc3 {[%clk 0:01:38]}  b4 {[%clk 0:00:27]} 38. axb4 {[%clk 0:01:07]}  axb4 {[%clk 0:00:27]} 39. Nxe4 {[%clk 0:01:07]}  Be7 {[%clk 0:00:27]} 40. Nd2 {[%clk 0:01:07]}  h5 {[%clk 0:00:27]} 41. f3 {[%clk 0:01:07]}  h4 {[%clk 0:00:27]} 42. g4 {[%clk 0:01:07]}  Kf6 {[%clk 0:00:27]} 43. Ne4+ {[%clk 0:01:07]}  Ke5 {[%clk 0:00:27]} 44. Nd2 {[%clk 0:01:07]}  Kd5 {[%clk 0:00:27]} 45. c4+ {[%clk 0:01:06]}  bxc3 {[%clk 0:00:42]} 46. bxc3 {[%clk 0:01:06]}  Bc8 {[%clk 0:00:42]} 47. Kh3 {[%clk 0:01:06]}  Ba6 {[%clk 0:00:42]} 48. f4 {[%clk 0:01:06]}  f6 {[%clk 0:00:42]} 49. Nf5 {[%clk 0:01:06]}  Bd8 {[%clk 0:00:42]} 50. Nd4 {[%clk 0:01:06]}  Bd3 {[%clk 0:00:42]} 51. N4f3 {[%clk 0:01:06]}  Kc5 {[%clk 0:00:42]} 52. e4 {[%clk 0:01:06]}  gxf4 {[%clk 0:00:42]} 53. Nxh4 {[%clk 0:01:06]}  Kd6 {[%clk 0:00:42]} 54. Ng6 {[%clk 0:01:06]}  f3 {[%clk 0:00:42]} 55. Kg3 {[%clk 0:01:06]}  Ba5 {[%clk 0:00:42]} 56. Kxf3 {[%clk 0:01:06]}  Bxc3 {[%clk 0:00:42]} 57. Nb3 {[%clk 0:00:43]}  Bc2 {[%clk 0:00:33]} 58. Nc1 {[%clk 0:00:43]}  Bd1+ {[%clk 0:00:33]} 59. Ne2 {[%clk 0:00:43]}  Bd2 {[%clk 0:00:33]} 60. Kf2 {[%clk 0:00:43]}  Kc5 {[%clk 0:00:33]} 61. e5 {[%clk 0:00:43]}  Bc2 {[%clk 0:00:33]} 62. exf6 {[%clk 0:00:43]}  Bxg6 {[%clk 0:00:33]} 63. Ng3 {[%clk 0:00:43]}  Bg5 {[%clk 0:00:33]} 64. Kf3 {[%clk 0:00:43]}  Kd5 {[%clk 0:00:33]} 65. Nh5 {[%clk 0:00:43]}  Ke5 {[%clk 0:00:33]} 66. Kg3 {[%clk 0:00:43]}  Ke4 {[%clk 0:00:33]} 67. Ng7 {[%clk 0:00:35]}  Bxf6 {[%clk 0:00:39]} 68. Nf5 {[%clk 0:00:35]}  Bg5 {[%clk 0:00:39]} 69. Kh3 {[%clk 0:00:35]}  Kf4 {[%clk 0:00:39]} 70. Nd4 {[%clk 0:00:35]}  Be7 {[%clk 0:00:39]} 71. Ne6+ {[%clk 0:00:35]}  Ke5 {[%clk 0:00:39]} 72. Ng7 {[%clk 0:00:35]}  Kf6 {[%clk 0:00:39]} 73. Nh5+ {[%clk 0:00:35]}  Kg5 {[%clk 0:00:39]} 74. Ng3 {[%clk 0:00:35]}  Bb1 {[%clk 0:00:39]} 75. Nf5 {[%clk 0:00:35]}  Bd8 {[%clk 0:00:39]} 76. Ng7 {[%clk 0:00:35]}  Ba2 {[%clk 0:00:39]} 77. Nf5 {[%clk 0:00:35]}  Bc7 {[%clk 0:00:39]} 78. Nd4 {[%clk 0:01:13]}  Bc4 {[%clk 0:00:33]} 79. Nf3+ {[%clk 0:01:13]}  Kf4 {[%clk 0:00:33]} 80. Nh4 {[%clk 0:01:13]}  Bf1+ {[%clk 0:00:33]} 81. Kh2 {[%clk 0:01:13]}  Kxg4+ {[%clk 0:00:33]} 82. Kg1 {[%clk 0:01:13]}  Bh3 {[%clk 0:00:33]} 83. Ng6 {[%clk 0:01:13]}  Kg3 {[%clk 0:00:33]} 84. Nh4 {[%clk 0:01:13]}  Bb6+ {[%clk 0:00:23]} 85. Kh1 {[%clk 0:00:22]}  Kxh4 {[%clk 0:00:23]} 86. Kh2 {[%clk 0:00:22]}  Bc7+ {[%clk 0:00:23]} 87. Kg1 {[%clk 0:00:22]}  Kg3 {[%clk 0:00:23]} 88. Kh1 {[%clk 0:00:22]}  Bg2+ {[%clk 0:00:23]} 0-1


[Site "http://www.Chess.com"]

[Event "FIDE World Rapid Chess Championship 2021"]
[White "Toczek, Grzegorz"]
[Black "Lopusiewicz, Piotr"]
[WhiteFideId "1106457"]
[BlackFideId "1116029"]
[WhiteElo "2220"]
[BlackElo "2197"]
[Result "0-1"]
[Round "09"]
[TimeControl "900+10"]
[Date "2021.12.27"]
[WhiteClock "0:01:08"]
[BlackClock "0:01:20"]

1. e4 {[%clk 0:15:00]}  e5 {[%clk 0:15:00]} 2. Nf3 {[%clk 0:15:00]}  Nc6 {[%clk 0:15:00]} 3. d4 {[%clk 0:15:00]}  exd4 {[%clk 0:15:00]} 4. Bc4 {[%clk 0:15:00]}  Nf6 {[%clk 0:13:56]} 5. e5 {[%clk 0:15:46]}  d5 {[%clk 0:13:56]} 6. Bb5 {[%clk 0:15:46]}  Nd7 {[%clk 0:13:56]} 7. O-O {[%clk 0:15:46]}  Be7 {[%clk 0:13:56]} 8. Re1 {[%clk 0:13:13]}  O-O {[%clk 0:13:51]} 9. Bxc6 {[%clk 0:13:13]}  bxc6 {[%clk 0:13:51]} 10. Nxd4 {[%clk 0:13:13]}  Nb8 {[%clk 0:13:51]} 11. Qf3 {[%clk 0:13:13]}  c5 {[%clk 0:13:41]} 12. Nf5 {[%clk 0:11:24]}  Bxf5 {[%clk 0:13:41]} 13. Qxf5 {[%clk 0:11:24]}  Nc6 {[%clk 0:11:25]} 14. c3 {[%clk 0:09:32]}  Qc8 {[%clk 0:10:14]} 15. Qf3 {[%clk 0:09:32]}  Qe6 {[%clk 0:10:14]} 16. Qe2 {[%clk 0:08:17]}  Rae8 {[%clk 0:08:45]} 17. Nd2 {[%clk 0:08:17]}  Bd6 {[%clk 0:07:42]} 18. Nf3 {[%clk 0:02:44]}  Nxe5 {[%clk 0:03:37]} 19. Nxe5 {[%clk 0:02:33]}  Bxe5 {[%clk 0:03:37]} 20. Kf1 {[%clk 0:02:33]}  Bxh2 {[%clk 0:02:23]} 21. Qxe6 {[%clk 0:01:24]}  fxe6 {[%clk 0:02:23]} 22. Bd2 {[%clk 0:01:24]}  Bf4 {[%clk 0:02:23]} 23. Rad1 {[%clk 0:01:24]}  c6 {[%clk 0:02:22]} 24. Re2 {[%clk 0:00:26]}  Bxd2 {[%clk 0:02:22]} 25. Rdxd2 {[%clk 0:00:26]}  c4 {[%clk 0:02:22]} 26. b3 {[%clk 0:00:26]}  cxb3 {[%clk 0:02:22]} 27. axb3 {[%clk 0:00:26]}  Kf7 {[%clk 0:02:22]} 28. Ra2 {[%clk 0:00:26]}  Re7 {[%clk 0:02:22]} 29. b4 {[%clk 0:00:26]}  Rc8 {[%clk 0:02:22]} 30. Ra5 {[%clk 0:00:26]}  Rcc7 {[%clk 0:02:22]} 31. f4 {[%clk 0:00:26]}  Kf6 {[%clk 0:02:22]} 32. Kf2 {[%clk 0:00:26]}  e5 {[%clk 0:02:22]} 33. fxe5+ {[%clk 0:00:26]}  Rxe5 {[%clk 0:02:22]} 34. Rea2 {[%clk 0:00:26]}  Re4 {[%clk 0:02:22]} 35. Rxa7 {[%clk 0:01:08]}  Rxa7 {[%clk 0:01:20]} 36. Rxa7 {[%clk 0:01:08]}  Rc4 {[%clk 0:01:20]} 37. Ra3 {[%clk 0:01:08]}  h5 {[%clk 0:01:20]} 38. Ke3 {[%clk 0:01:08]}  Ke5 {[%clk 0:01:20]} 39. Kd3 {[%clk 0:01:08]}  Rg4 {[%clk 0:01:20]} 40. Ra2 {[%clk 0:01:08]}  Rg3+ {[%clk 0:01:20]} 0-1


[Site "http://www.Chess.com"]

[Event "FIDE World Rapid Chess Championship 2021"]
[White "Lubczynski, Rafal"]
[Black "Nasuta, Grzegorz"]
[WhiteFideId "1126091"]
[BlackFideId "1141686"]
[WhiteElo "2289"]
[BlackElo "2345"]
[Result "0-1"]
[Round "09"]
[TimeControl "900+10"]
[Date "2021.12.27"]
[WhiteClock "0:00:24"]
[BlackClock "0:00:33"]

1. Nf3 {[%clk 0:15:00]}  d5 {[%clk 0:15:00]} 2. c4 {[%clk 0:15:00]}  c6 {[%clk 0:15:00]} 3. b3 {[%clk 0:15:00]}  Bf5 {[%clk 0:15:00]} 4. Bb2 {[%clk 0:15:00]}  e6 {[%clk 0:15:00]} 5. g3 {[%clk 0:15:23]}  Nf6 {[%clk 0:15:16]} 6. Bg2 {[%clk 0:15:23]}  Be7 {[%clk 0:15:16]} 7. O-O {[%clk 0:15:23]}  O-O {[%clk 0:15:16]} 8. d3 {[%clk 0:15:23]}  h6 {[%clk 0:12:49]} 9. Nbd2 {[%clk 0:15:44]}  Nbd7 {[%clk 0:12:49]} 10. Rc1 {[%clk 0:15:44]}  a5 {[%clk 0:12:49]} 11. a3 {[%clk 0:15:44]}  Bh7 {[%clk 0:12:49]} 12. Rc2 {[%clk 0:15:44]}  c5 {[%clk 0:12:49]} 13. cxd5 {[%clk 0:15:35]}  exd5 {[%clk 0:12:31]} 14. Re1 {[%clk 0:15:35]}  d4 {[%clk 0:12:31]} 15. b4 {[%clk 0:15:35]}  axb4 {[%clk 0:11:57]} 16. axb4 {[%clk 0:12:47]}  b6 {[%clk 0:11:57]} 17. Nc4 {[%clk 0:12:55]}  Rc8 {[%clk 0:10:51]} 18. b5 {[%clk 0:10:54]}  Re8 {[%clk 0:08:46]} 19. e3 {[%clk 0:10:54]}  dxe3 {[%clk 0:07:23]} 20. fxe3 {[%clk 0:09:34]}  Nd5 {[%clk 0:07:23]} 21. Rd2 {[%clk 0:09:34]}  Bf6 {[%clk 0:05:08]} 22. Qb3 {[%clk 0:09:34]}  Bxb2 {[%clk 0:05:08]} 23. Qxb2 {[%clk 0:09:34]}  Qc7 {[%clk 0:04:47]} 24. Qb3 {[%clk 0:07:47]}  Rcd8 {[%clk 0:03:58]} 25. e4 {[%clk 0:04:02]}  Nb4 {[%clk 0:00:39]} 26. e5 {[%clk 0:04:02]}  Bxd3 {[%clk 0:00:39]} 27. Nd6 {[%clk 0:04:02]}  Re6 {[%clk 0:00:39]} 28. Rxd3 {[%clk 0:04:02]}  Nxd3 {[%clk 0:00:39]} 29. Qxd3 {[%clk 0:01:47]}  Nxe5 {[%clk 0:00:45]} 30. Rxe5 {[%clk 0:01:47]}  Rdxd6 {[%clk 0:00:45]} 31. Qe2 {[%clk 0:01:47]}  c4 {[%clk 0:00:45]} 32. Rxe6 {[%clk 0:00:24]}  Rxe6 {[%clk 0:00:33]} 33. Qf2 {[%clk 0:00:24]}  c3 {[%clk 0:00:33]} 34. Nd4 {[%clk 0:00:24]}  Qc5 {[%clk 0:00:33]} 35. Nc2 {[%clk 0:00:24]}  Re2 {[%clk 0:00:33]} 36. Qxc5 {[%clk 0:00:24]}  bxc5 {[%clk 0:00:33]} 37. b6 {[%clk 0:00:24]}  Rxc2 {[%clk 0:00:33]} 38. b7 {[%clk 0:00:24]}  Rb2 {[%clk 0:00:33]} 39. Be4 {[%clk 0:00:24]}  Rxb7 {[%clk 0:00:33]} 0-1


[Site "http://www.Chess.com"]

[Event "FIDE World Rapid Chess Championship 2021"]
[White "Firouzja, Alireza"]
[Black "Nakamura, Hikaru"]
[WhiteFideId "12573981"]
[BlackFideId "2016192"]
[WhiteElo "2656"]
[BlackElo "2836"]
[Result "1/2-1/2"]
[Round "10"]
[TimeControl "900+10"]
[Date "2021.12.28"]
[WhiteClock "0:00:03"]
[BlackClock "0:00:50"]

1. e4 {[%clk 0:15:00]}  e5 {[%clk 0:15:00]} 2. Nf3 {[%clk 0:15:00]}  Nc6 {[%clk 0:15:00]} 3. Bc4 {[%clk 0:15:51]}  Bc5 {[%clk 0:15:37]} 4. c3 {[%clk 0:15:51]}  Nf6 {[%clk 0:15:37]} 5. d3 {[%clk 0:15:51]}  O-O {[%clk 0:15:37]} 6. O-O {[%clk 0:15:51]}  d5 {[%clk 0:15:37]} 7. exd5 {[%clk 0:15:51]}  Nxd5 {[%clk 0:15:37]} 8. Re1 {[%clk 0:15:51]}  Bg4 {[%clk 0:15:37]} 9. a4 {[%clk 0:15:51]}  Nb6 {[%clk 0:15:37]} 10. Bb3 {[%clk 0:15:51]}  a5 {[%clk 0:15:37]} 11. h3 {[%clk 0:15:51]}  Bh5 {[%clk 0:15:37]} 12. Nbd2 {[%clk 0:15:51]}  Kh8 {[%clk 0:15:37]} 13. Ne4 {[%clk 0:15:51]}  Nd7 {[%clk 0:15:37]} 14. Bd5 {[%clk 0:15:51]}  Ba7 {[%clk 0:15:37]} 15. Ng3 {[%clk 0:15:21]}  Bxf3 {[%clk 0:14:59]} 16. Qxf3 {[%clk 0:15:21]}  f5 {[%clk 0:14:59]} 17. d4 {[%clk 0:15:21]}  f4 {[%clk 0:14:59]} 18. Nh5 {[%clk 0:15:21]}  Qg5 {[%clk 0:09:01]} 19. Bd2 {[%clk 0:15:22]}  Rad8 {[%clk 0:09:01]} 20. Rad1 {[%clk 0:08:16]}  Ndb8 {[%clk 0:07:45]} 21. Ba2 {[%clk 0:07:01]}  g6 {[%clk 0:04:58]} 22. Ng3 {[%clk 0:05:10]}  exd4 {[%clk 0:04:58]} 23. Ne2 {[%clk 0:05:10]}  Qf6 {[%clk 0:05:06]} 24. cxd4 {[%clk 0:03:33]}  Nxd4 {[%clk 0:02:35]} 25. Nxd4 {[%clk 0:03:33]}  Bxd4 {[%clk 0:02:35]} 26. Re6 {[%clk 0:03:33]}  Qg7 {[%clk 0:02:35]} 27. Qxb7 {[%clk 0:03:33]}  Bf6 {[%clk 0:00:52]} 28. Ree1 {[%clk 0:01:58]}  c5 {[%clk 0:00:52]} 29. Qxg7+ {[%clk 0:00:43]}  Kxg7 {[%clk 0:01:04]} 30. Bxa5 {[%clk 0:00:43]}  Rxd1 {[%clk 0:01:04]} 31. Rxd1 {[%clk 0:00:43]}  Bxb2 {[%clk 0:01:04]} 32. Bb6 {[%clk 0:00:43]}  Bd4 {[%clk 0:01:04]} 33. Bd5 {[%clk 0:00:43]}  Nd7 {[%clk 0:00:58]} 34. Bc7 {[%clk 0:00:01]}  Be5 {[%clk 0:00:58]} 35. Bxe5+ {[%clk 0:00:01]}  Nxe5 {[%clk 0:00:58]} 36. a5 {[%clk 0:00:01]}  Rd8 {[%clk 0:00:58]} 37. a6 {[%clk 0:00:01]}  Nc6 {[%clk 0:00:58]} 38. Kf1 {[%clk 0:00:01]}  Kf6 {[%clk 0:00:58]} 39. Ke2 {[%clk 0:00:01]}  Na7 {[%clk 0:00:58]} 40. Rd3 {[%clk 0:00:01]}  Ke5 {[%clk 0:00:58]} 41. Bf3 {[%clk 0:00:03]}  Rd4 {[%clk 0:00:50]} 42. Rc3 {[%clk 0:00:03]}  Ra4 {[%clk 0:00:50]} 43. Rxc5+ {[%clk 0:00:03]}  Kd6 {[%clk 0:00:50]} 44. Rd5+ {[%clk 0:00:03]}  Ke6 {[%clk 0:00:50]} 45. Rd8 {[%clk 0:00:03]}  Rxa6 {[%clk 0:00:50]} 46. Bd5+ {[%clk 0:00:03]}  Ke5 {[%clk 0:00:50]} 47. Bg8 {[%clk 0:00:03]}  Nc6 {[%clk 0:00:50]} 48. Rd5+ {[%clk 0:00:03]}  Kf6 {[%clk 0:00:50]} 49. Rd6+ {[%clk 0:00:03]}  Ke7 {[%clk 0:00:50]} 50. Rd2 {[%clk 0:00:03]} 1/2-1/2


[Site "http://www.Chess.com"]